Cogmind - Beta 16 --- EXPLORER MODE // 2025.12.12 @ 14:59:26 Player: K.K.Y. Result: Destroyed by 53-D9L(R) with Subdweller Machine Gun Performance ------------- Evolutions (0) 0 Regions Visited (3) 600 Robots Destroyed (49) 245 Value Destroyed (819) 819 Prototype IDs (13) 260 Alien Tech Used (0) 0 Bonus (-118) -118 TOTAL SCORE: 1806 Bonus ------- Friendly Fire -118 Cogmind --------- Core Integrity 0/250 Matter 65/300 Energy 274/280 System Corruption 0% Temperature Cool (0) Movement Treading (260) Ox1 Location -10/Subcaves Parts ------- > --- POWER (1) -------- Heavy Ion Engine > --- PROPULSION (3) --- Spiked Treads Spiked Treads Spiked Treads > --- UTILITY (2) ------ Huge Storage Unit > --- WEAPON (2) ------- Battle Cannon Battle Cannon > --- INVENTORY (25) --- Makeshift Flight Unit Humpback Sensor Array Medium Armor Plating Gun Armor Makeshift System Restoration Module Riot Gun Heavy Riot Gun Barrage Gun Heavy Battle Rifle Battle Cannon Battle Cannon Mining Laser Peak State ------------ > --- POWER ------------ Heavy Ion Engine > --- PROPULSION ------- Spiked Treads Spiked Treads Wheel > --- UTILITY ---------- Improved Heat Sink Structural Scanner > --- WEAPON ----------- Riot Gun Heavy Riot Gun > --- INVENTORY -------- Heavy Ion Engine Huge Storage Unit Sensor Array Medium Armor Plating Mining Laser [Rating: 19] Favorites ----------- Power Heavy Ion Engine Engine Heavy Ion Engine Power Core Light Nuclear Core Propulsion Spiked Treads Treads Spiked Treads Wheel Compact Wheel Utility Huge Storage Unit Device Improved Heat Sink Storage Huge Storage Unit Protection Medium Armor Plating Weapon Battle Cannon Energy Gun Particle Gun Ballistic Gun Assault Rifle Ballistic Cannon Battle Cannon Build | -11 -10 -10 -10 ------- Run | Yrd Mat Min Sub Slots Evolved 1 | . 1 . . Power . | . . . . Propulsion 1 | . 1 . . Utility . | . . . . Weapon . | . . . . Parts Attached 30 | 7 7 5 11 Power 4 | 1 2 . 1 Engine 3 | 1 1 . 1 Core 1 | . 1 . . Reactor . | . . . . Propulsion 12 | 4 1 3 4 Treads 3 | . . . 3 Leg . | . . . . Wheel 9 | 4 1 3 1 Hover . | . . . . Flight . | . . . . Utility 6 | . 3 2 1 Device 4 | . 2 2 . Storage 1 | . . . 1 Processor . | . . . . Hackware . | . . . . Protection 1 | . 1 . . Artifact . | . . . . Weapon 8 | 2 1 . 5 Energy Gun 4 | 1 1 . 2 Energy Cannon . | . . . . Ballistic Gun 1 | 1 . . . Ballistic Cannon 3 | . . . 3 Launcher . | . . . . Special Weapon . | . . . . Impact Weapon . | . . . . Slashing Weapon . | . . . . Piercing Weapon . | . . . . Special Melee Weapon . | . . . . Unidentified Prototypes 1 | . 1 . . Parts Lost 6 | . . 2 4 Power 1 | . . . 1 Propulsion 4 | . . 2 2 Utility 1 | . . . 1 Weapon . | . . . . Highest Loss Streak 2 | . . 2 1 To Critical Strikes . | . . . . Average Backups 9 | 1 4 5 10 Power . | . . 1 . Propulsion . | 1 1 . . Utility 4 | . 1 3 4 Weapon 4 | . 1 1 5 Tool/Special . | . . . . Unused Backups 11 | . . 1 10 Power . | . . . . Propulsion 1 | . . . 1 Utility 5 | . . 1 4 Weapon 5 | . . . 5 Tool/Special . | . . . . Average Slot Usage (%) 84 | . 83 91 84 Engine 11 | . 10 12 11 Treads 19 | . . . 22 Wheel 8 | . 33 28 5 Device 10 | . 9 25 8 Storage 8 | . . . 9 Energy Gun 5 | . 12 12 4 Ballistic Gun 1 | . 12 12 . Ballistic Cannon 17 | . . . 20 Peak Build Rating 19 | 5 13 13 19 Average Rating 15 | 3 9 12 16 On Entrance 7 | . 5 12 13 Avg Prop Armor Cover (%) 4 | . . . 4 Naked Turns . | . . . . Heaviest Build 96 | 9 21 15 96 Greatest Support 60 | 32 48 48 60 Greatest Overweight (x) 2 | 1 . . 2 Average Overweight (x) . | . . . 1 Largest Inventory Capacity 25 | 5 5 5 25 Average Capacity 18 | 5 5 5 21 Most Carried 15 | 5 5 5 15 Average Carried 10 | 1 4 4 11 Final Capacity 25 | 5 5 5 25 Final Carried 14 | 4 5 5 14 Class Distribution -------------------- 62% | Hacker-Mutant 18% | Derelict-Mutant 18% | Scavenger-Mutant Dominant Class ---------------- Scavenger-Mutant | -10/Materials Scavenger-Mutant | -10/Mines Hacker-Mutant | -10/Subcaves Resources | -11 -10 -10 -10 ----------- Run | Yrd Mat Min Sub Matter Collected 953 | 288 156 184 325 Remotely . | . . . . Salvage Created 1531 | 134 486 562 349 Parts 91 | 10 27 23 31 Haulers Intercepted 1 | . 1 . . Recyclers Shooed 3 | . 2 1 . Parts Field Recycled . | . . . . Retrieved Matter . | . . . . Parts Self-Destructed . | . . . . Prevented . | . . . . Parts Restored . | . . . . Kills | -11 -10 -10 -10 ------- Run | Yrd Mat Min Sub Combat Hostiles Destroyed 22 | . 6 4 12 Guns 13 | . 6 4 3 Cannons 7 | . . . 7 Classes Destroyed 11 | 2 6 . 3 Worker 8 | . 3 5 . Builder 2 | . 1 1 . Tunneler 3 | 2 . 1 . Hauler 1 | . 1 . . Recycler 7 | 1 2 4 . Turret 2 | . . . 2 Watcher 2 | . 2 . . Swarmer 8 | . 2 . 6 Grunt 8 | . 4 4 . Subdweller 6 | . . . 6 Zionite 2 | . . . 2 Best Kill Streak 11 | 2 11 2 6 Combat Bots Only 4 | . 2 2 4 Max Kills in Single Turn 1 | 1 1 1 1 Gunslinging . | . . . . Exploded . | . . . . Melee . | . . . . Uniques/NPCs Destroyed . | . . . . Combat | -11 -10 -10 -10 -------- Run | Yrd Mat Min Sub Hostile Shots Fired 170 | . 21 36 113 Missed 43 | . 7 4 32 Hits 127 | . 14 32 81 Projectile 127 | . 14 32 81 Critical Strikes 1 | . . 1 . Damage Taken 1189 | . 91 273 825 Core 257 | . 48 74 135 Absorbed by Shields . | . . . . Ignored by Resistances 623 | . 58 170 395 Core Remaining (%) 100 | 100 . . . Volleys Fired 145 | 6 32 43 64 Largest 2 | 2 2 2 2 Hottest 110 | 70 85 85 110 Shots Fired 277 | 12 64 86 115 Gun 187 | 12 64 86 25 Cannon 90 | . . . 90 Launcher . | . . . . Special . | . . . . Kinetic 171 | 6 32 43 90 Thermal 83 | 6 32 43 2 Explosive . | . . . . Electromagnetic 23 | . . . 23 Robot Hit Streak 35 | 7 21 35 20 Robot Miss Streak 2 | 1 1 2 2 Penetration Max . | . . . . Secondary Targets 2 | . . 2 . Max Gunslinging Chain 1 | . . 1 . Shots Hit Robots 200 | 10 53 71 66 Core Hits 78 | 4 26 22 26 Critical Kills . | . . . . Critical Parts Destroyed . | . . . . Critical Strikes 9 | 1 4 4 . Burn 9 | 1 4 4 . Melee Attacks . | . . . . Impact . | . . . . Slashing . | . . . . Piercing . | . . . . Sneak Attacks . | . . . . Combat Hostiles . | . . . . Follow-up Attacks . | . . . . Damage Inflicted 3190 | 120 676 1027 1367 Guns 2199 | 120 676 1027 376 Cannons 991 | . . . 991 Explosions . | . . . . Melee . | . . . . Ramming . | . . . . Kinetic 1788 | 57 308 432 991 Thermal 1040 | 63 368 595 14 Explosive . | . . . . Electromagnetic 362 | . . . 362 Impact . | . . . . Slashing . | . . . . Piercing . | . . . . Highest Corruption . | . . . . Average Corruption . | . . . . Corruption Purged . | . . . . Corruption Blocked . | . . . . Overload Shots . | . . . . Overflow Damage 9 | . . . 9 Projectiles 9 | . . . 9 Explosions . | . . . . Melee . | . . . . Knockbacks 12 | . . . 12 Impact . | . . . . Kinetic 12 | . . . 12 Secondary . | . . . . Self-Inflicted Damage . | . . . . Shots . | . . . . Rammed . | . . . . Targets Rammed . | . . . . Kicked . | . . . . Crushed . | . . . . Highest Temperature 365 | 36 126 365 . Average Temperature 71 | 16 39 140 . Received Heat Transfer 447 | . 69 264 114 Effects 4 | . . 4 . Energy Bleed 1 | . . 1 . Interference 3 | . . 3 . Siege Activations . | . . . . Martial Activations . | . . . . Shielding Activations . | . . . . Robots Disrupted . | . . . . Combat Hostiles . | . . . . Robots Corrupted 2 | . . . 2 Combat Hostiles 2 | . . . 2 Parts Fried 6 | . . . 6 Impact Corruptions . | . . . . Robots Melted . | . . . . Combat Hostiles . | . . . . Parts Melted 3 | . 2 1 . Heat Transferred 3404 | 259 1369 1739 37 Parts Sabotaged . | . . . . Parts Stolen . | . . . . Parts Stripped . | . . . . Power Chain Reactions . | . . . . Alert | -11 -10 -10 -10 ------- Run | Yrd Mat Min Sub Maximum Alert Level . | . . . . Low Security (%) 100 | 100 100 100 . Level 1 . | . . . . Level 2 . | . . . . Level 3 . | . . . . Level 4 . | . . . . Level 5 . | . . . . High Security . | . . . . Max Security . | . . . . Peak Influence 62 | 5 62 45 . Initial 2 | . 2 . . Average 6 | 1 10 3 . Influence Increases 571 | 15 201 155 200 Destroy 0b10 Robot/C 360 | . 120 80 160 Destroy 0b10 Robot/NC 115 | 15 45 55 . Destroy Leader 66 | . 36 20 10 Lose Combat Pursuer 30 | . . . 30 Influence Decreases 571 | 10 206 155 200 Entered New Map 3 | . 3 . . Time Decay 548 | 10 203 145 190 Lost Part 20 | . . 10 10 Squads Dispatched . | . . . . Investigation . | . . . . Extermination . | . . . . Reinforcement . | . . . . Assault . | . . . . Garrison . | . . . . Intercept . | . . . . Searches Triggered . | . . . . Construction Impeded . | . . . . Haulers Reinforced . | . . . . Active Scanning Responses . | . . . . Cargo Convoy Interrupts . | . . . . Stealth | -11 -10 -10 -10 --------- Run | Yrd Mat Min Sub Distress Signals 1 | . 1 . . Communications Jammed . | . . . . Distress Signals . | . . . . Times Spotted 28 | . 8 4 16 Peak Tracking Total 6 | . 3 2 6 Tactical Retreats 1 | . . . 1 Traps | -11 -10 -10 -10 ------- Run | Yrd Mat Min Sub Traps Triggered 5 | . . . 5 Indirectly . | . . . . Trap Hack Attempts . | . . . . Triggered . | . . . . Disarmed . | . . . . Reprogrammed . | . . . . Reused . | . . . . Traps Extracted . | . . . . Installed . | . . . . Triggered . | . . . . Machines | -11 -10 -10 -10 ---------- Run | Yrd Mat Min Sub Machines Disabled 3 | . . . 3 Max in Single Turn 1 | . . . 1 Machines Repaired . | . . . . Machines Dismantled . | . . . . Machines Sabotaged . | . . . . Overloaded Fab Kills . | . . . . Hacking | -11 -10 -10 -10 --------- Run | Yrd Mat Min Sub Machines Accessed 1 | . . . 1 Terminals . | . . . . Fabricators . | . . . . Repair Stations . | . . . . Recycling Units . | . . . . Scanalyzers . | . . . . Garrison Access . | . . . . Total Hacks 1 | . . . 1 Successful 1 | . . . 1 Failed . | . . . . Catastrophic . | . . . . Database Lockouts . | . . . . Manual . | . . . . Terminals . | . . . . Fabricators . | . . . . Repair Stations . | . . . . Recycling Units . | . . . . Scanalyzers . | . . . . Garrison Access . | . . . . Terminal Hacks 1 | . . . 1 Proto ID Catalog 1 | . . . 1 Fabricator Hacks . | . . . . Repair Station Hacks . | . . . . Recycling Unit Hacks . | . . . . Scanalyzer . | . . . . Garrison Access Hacks . | . . . . Unauthorized Hacks . | . . . . Terminals . | . . . . Fabricators . | . . . . Repair Stations . | . . . . Recycling Units . | . . . . Scanalyzers . | . . . . Garrison Access . | . . . . Data Cores Recovered . | . . . . Used . | . . . . Hacking Detections . | . . . . Full Trace Events . | . . . . Feedback Events . | . . . . Feedback Blocked . | . . . . Robot Schematics Acquired . | . . . . Robots Built . | . . . . Authchips . | . . . . Time . | . . . . Total Robot Build Rating . | . . . . Part Schematics Acquired . | . . . . Parts Built . | . . . . Authchips . | . . . . Time . | . . . . Total Part Build Rating . | . . . . Part Studies Acquired . | . . . . Parts Repaired . | . . . . Time . | . . . . Parts Recycled . | . . . . Recycled Matter . | . . . . Retrieved Matter . | . . . . Retrieved Components . | . . . . Parts Scanalyzed . | . . . . Part Schematics Acquired . | . . . . Parts Damaged . | . . . . Bothacking | -11 -10 -10 -10 ------------ Run | Yrd Mat Min Sub Used RIF Installer . | . . . . Robots Hacked . | . . . . Non-combat . | . . . . Combat . | . . . . Robot Hacks Applied . | . . . . Relay Couplers Released . | . . . . Fabnet Peak Effective % . | . . . . Robots Rewired . | . . . . Allies Hacked . | . . . . Hacks Repelled . | . . . . Allies | -11 -10 -10 -10 -------- Run | Yrd Mat Min Sub Total Allies . | . . . . Largest Group . | . . . . Highest-Rated Group . | . . . . Highest-Rated Ally . | . . . . Total Orders . | . . . . Ally Attacks . | . . . . Total Damage . | . . . . Kills . | . . . . Allies Corrupted . | . . . . Allies Melted . | . . . . Intel | -11 -10 -10 -10 ------- Run | Yrd Mat Min Sub Active Infowar (turns) 2873 | . 307 808 1758 Sensors 222 | . 89 133 . Structural 2873 | . 307 808 1758 Robot Analysis Total . | . . . . Derelict Logs Recovered . | . . . . Drone Launches . | . . . . Drone Recoveries . | . . . . Exploration | -11 -10 -10 -10 ------------- Run | Yrd Mat Min Sub Turns Passed 10214 | 73 531 808 8802 Spaces Moved 3559 | 45 379 676 2459 Core 23 | 23 . . . Treads 1744 | . . . 1744 Legs . | . . . . Wheels 1792 | 22 379 676 715 Hover . | . . . . Flight . | . . . . Fastest Speed 50 | 50 100 93 90 Average Speed 210 | 85 100 97 261 Slowest Speed 360 | 100 100 100 360 Overloaded Moves . | . . . . Propulsion Burnouts . | . . . . Robots Hopped . | . . . . Potential Cave-ins . | . . . . Cave-ins Triggered . | . . . . Exploration Rate (%) 62 | 4 66 98 82 Regions Visited 3 Branch Regions 2 Pre-discovered Areas 2 | . . 1 1 Known Exits Taken 3 | 1 1 1 . Unknown Exits Taken . | . . . . Scrap Searched 8 | . . . 8 Spaces Dug 1 | . . . 1 Terrain Destroyed 1 | . . . 1 Melee . | . . . . Projectile 1 | . . . 1 AOE . | . . . . Terrain Rammed . | . . . . Walls Destroyed . | . . . . Machines Disabled . | . . . . Actions | -11 -10 -10 -10 --------- Run | Yrd Mat Min Sub Total 5992 | 68 469 737 4718 Wait 2216 | . 38 10 2168 Move 3556 | 44 378 675 2459 Hop . | . . . . Pick Up 28 | 9 7 1 11 Fast Attach 7 | . 3 2 2 Attach 13 | 7 3 . 3 Detach 3 | 2 1 . . Swap 12 | . 1 3 8 Drop 12 | . 6 3 3 Fire 145 | 6 32 43 64 Melee . | . . . . Ram . | . . . . Kick . | . . . . Crush . | . . . . Escape Stasis . | . . . . Rewire . | . . . . Trap . | . . . . Miscellaneous . | . . . . Route ------- -11/Scrapyard -10/Materials (discovered 4 exits: *Mat / *Min x2 / Sub) -10/Mines (discovered 3 exits: *Mat x2 / *Sub) -10/Subcaves (discovered 4 exits: *Mat x2 / *Rec / [*Scr]) History --------- Turn | Location | Event 2 | -11/Scrapyard | Met Revision 17 23 | -11/Scrapyard | Identified exit to Materials 23 | -11/Scrapyard | Discovered exit to Materials (range 15) 74 | -11/Scrapyard | Entered Materials 74 | -10/Materials | Evolved 1 slot: Propulsion x1 161 | -10/Materials | Identified exit to Mines 161 | -10/Materials | Discovered exit to Mines (range 13) 400 | -10/Materials | Identified exit to Subcaves 400 | -10/Materials | Discovered exit to Subcaves (range 5) 411 | -10/Materials | Identified exit to Materials 411 | -10/Materials | Discovered exit to Materials (range 12) 575 | -10/Materials | Build established: Scavenger-Mutant 579 | -10/Materials | Discovered exit to Mines (range 11) 605 | -10/Materials | Entered Mines 616 | -10/Mines | Discovered exit to Materials (range 11) 624 | -10/Mines | Learned location of Storage (-8) 780 | -10/Mines | Discovered exit to Materials (range 3) 1385 | -10/Mines | Discovered exit to Subcaves (range 6) 1413 | -10/Mines | Entered Subcaves 1414 | -10/Subcaves | Approached by a straggling Scientist 1434 | -10/Subcaves | Shifting Twisted Machinery released Sub. Monowheel 1434 | -10/Subcaves | Shifting Twisted Machinery released Battle Cannon 1538 | -10/Subcaves | A swath of the cavern ceiling suddenly collapsed 1547 | -10/Subcaves | Curiously followed by a Cobbler waking with a query about "LVR3C" 1761 | -10/Subcaves | Core integrity fell below 50% 2263 | -10/Subcaves | Identified exit to Recycling 2263 | -10/Subcaves | Discovered exit to Recycling (range 5) 2610 | -10/Subcaves | Build established: Hacker-Mutant 2745 | -10/Subcaves | Core integrity fell below 20% 3499 | -10/Subcaves | Shifting Twisted Machinery released Battle Cannon 3559 | -10/Subcaves | Shifting Twisted Machinery released Hvy. Battle Rifle 5246 | -10/Subcaves | Learned location of Zion (-6) 5246 | -10/Subcaves | Met a Zionite searching for "candidates" 5407 | -10/Subcaves | Identified exit to Materials 5407 | -10/Subcaves | Discovered exit to Materials (range 16) 5596 | -10/Subcaves | Visited 4L-MR0's lab 5652 | -10/Subcaves | Found Gun Armor 7945 | -10/Subcaves | Curiously followed by a Cobbler waking with a query about "LVR3C" 8600 | -10/Subcaves | Build established: Derelict-Mutant 9135 | -10/Subcaves | Discovered exit to Materials (range 7) 10188 | -10/Subcaves | A Subdweller sparked back to life 10188 | -10/Subcaves | A Subdweller sparked back to life 10188 | -10/Subcaves | A Subdweller sparked back to life 10215 | -10/Subcaves | Destroyed by 53-D9L(R) with Subdweller Machine Gun Last Messages --------------- 09964_ Subatomizers dissect the Lgt. Ion Engine, destroying it. 10188_ JG-Y0E(R) creaks and sparks as it begins to move. 10188_ 53-D9L(R) creaks and sparks as it begins to move. 10188_ NR-6GM(R) creaks and sparks as it begins to move. 10194_ 53-D9L(R) knocked back. 10197_ 53-D9L(R) affixes Scrap Shield Fragment to Scrap Shield. 10200_ 53-D9L(R) knocked back. 10200_ L8-QBV(O) collects matter. 10203_ NR-6GM(R) knocked back. 10206_ JG-Y0E(R) knocked back. 10206_ L8-QBV(O) collects matter. 10209_ JG-Y0E(R) knocked back. 10212_ 53-D9L(R) knocked back. 10215_ JG-Y0E(R) knocked back. Map ----- +----------------------------------------------------+ | | | | | | | | | | | | | | | | | ?????????????????????????????????????????????????? | | ?????????????????????????????????????????????????? | | ?????????????????????????????????????????????????? | | ?????????????????????????????????????????????????? | | ?????????????????????????????????????????????????? | | ?????????????????????????????????????????????????? | | ?????????????????????????????????????????????????? | | ?????????????????????????????????????????????????? | | ?????????????????????????????????????????????????? | | ?????????????????????????????????????????????????? | | ?????????????????????????????????????????????????? | | ???????????????????########??????????????????????? | | ???????????????????######"##?????????????????????? | | ???????????????????##R< %######??????????????????? | | ???????????????????##R R %########???????######### | | ##?????#######?????## # ######?????########## | | ##???## ##????##% ###?????### | | ##### ##???##% @ ######### | | ## ## ######### ######### | | ### ##### ### ## | | # #?# ### O # ## | | ## ## #?# ## ## | | ?# #### ### ## ## # ###### | | ####??## ## ### ####### ###### | | ###????## ### ### ### ####### ##""#### | | #?????##### ###### ########## ###" "#### | | #????##### ###### # ####### ###""= ### | | ###???## ## #?## # #### ## ### | | ??????# ##### # #### ## | | ??????# #### ## # | | ????### ## ### "" | | #??## ##?###### """""" | | #### ############# " | | ### # # #### ### #### | | ## ## # ######## ##### | | ### ########## #### | | ###?# # # # ####????### #### " | | #??## ### ##### ####?????## ### " | | ###?## #?# #### ###??????### ####### | | ##???# ## ### #### #???????### ###### | | #????## ## ### #????????### ???## | | #?????## # ##### ####????????#### ??## | +----------------------------------------------------+ Best States ------------- Heat Dissipation 39 Energy Generation 14 Energy Capacity 280 Matter Stores 300 Matter Capacity 300 Sight Range 16 Robot Scan Range 14 Terrain Scan Density 10 Armor Coverage 225 Resistance: KI 35 Resistance: TH 35 Resistance: EX 35 Resistance: EM 35 Resistance: I 35 Resistance: S 35 Resistance: P 35 Evasion (%) 44 Recoil Reduction 3 Offensive Hacking 20 Item Schematics ----------------- None Robot Schematics ------------------ None Fabricated ------------ Nothing Repaired ---------- Nothing Studied --------- None Alien Tech Used ----------------- None Achievements -------------- None Challenges ------------ None Game ------ Seed HellfireStealthInjector Manual? 0 Play Time 00:28:27 Cumulative 196.0 hours Start 2025.12.12 @ 14:37:42 End 2025.12.12 @ 14:59:26 Sessions 1 Manual Loads 0 Difficulty Explorer Special Mode None Game No. 288 Rogue 0 Adventurer 0 Explorer 288 Win Type - Total 0 Types 0/0/0/0/0/0/0/0/0/0 Lore% 71 Gallery% 67 Achievement% 53 Wizard Run 0 Options --------- Layout 1 ASCII 0 Keyboard 0 Movement Mouse Keybinds 0 Fullscreen 1 Font 24/Smallcaps Map View 50x35 Zoom Use 0% Tactical HUD 1 Map Filters NONE Filters NONE Steam 1 RUN: b369cb1a-b17f-405a-91c4-f0995ffe9689